[Event "Titled Tuesday Blitz October 18 Late 2022"]
[White "Hambleton, Aman"]
[Black "Melkumyan, Hrant"]
[WhiteFideId "2606577"]
[BlackFideId "13302485"]
[WhiteElo "2538"]
[BlackElo "2604"]
[Result "1/2-1/2"]
[Round "03"]
[TimeControl "180+1"]
[Date "2022.10.18"]
[WhiteClock "0:00:12"]
[BlackClock "0:00:07"]

1. d4 {[%clk 0:03:00]}  Nf6 {[%clk 0:03:00]} 2. c4 {[%clk 0:02:55]}  g6 {[%clk 0:03:00]} 3. Nc3 {[%clk 0:02:52]}  Bg7 {[%clk 0:03:00]} 4. e4 {[%clk 0:02:52]}  d6 {[%clk 0:03:01]} 5. f3 {[%clk 0:02:48]}  O-O {[%clk 0:02:58]} 6. Be3 {[%clk 0:02:49]}  a6 {[%clk 0:02:59]} 7. Qd2 {[%clk 0:02:43]}  c5 {[%clk 0:02:54]} 8. Nge2 {[%clk 0:02:41]}  Nc6 {[%clk 0:02:52]} 9. O-O-O {[%clk 0:02:17]}  cxd4 {[%clk 0:02:36]} 10. Nxd4 {[%clk 0:02:18]}  Bd7 {[%clk 0:02:36]} 11. Kb1 {[%clk 0:02:18]}  b5 {[%clk 0:02:33]} 12. cxb5 {[%clk 0:01:38]}  Nxd4 {[%clk 0:02:30]} 13. Bxd4 {[%clk 0:01:39]}  axb5 {[%clk 0:02:30]} 14. Bxb5 {[%clk 0:01:40]}  Bxb5 {[%clk 0:02:29]} 15. Nxb5 {[%clk 0:01:41]}  Qd7 {[%clk 0:02:25]} 16. Qb4 {[%clk 0:01:18]}  Rfb8 {[%clk 0:01:38]} 17. a4 {[%clk 0:01:18]}  Qb7 {[%clk 0:01:31]} 18. Rc1 {[%clk 0:00:53]}  e5 {[%clk 0:00:51]} 19. Bc3 {[%clk 0:00:30]}  Bf8 {[%clk 0:00:50]} 20. Qc4 {[%clk 0:00:12]}  Nd7 {[%clk 0:00:47]} 21. b3 {[%clk 0:00:10]}  Nb6 {[%clk 0:00:45]} 22. Qc7 {[%clk 0:00:06]}  Nxa4 {[%clk 0:00:38]} 23. Qxb7 {[%clk 0:00:01]}  Rxb7 {[%clk 0:00:36]} 24. bxa4 {[%clk 0:00:02]}  Rxa4 {[%clk 0:00:37]} 25. Kc2 {[%clk 0:00:02]}  Rxb5 {[%clk 0:00:37]} 26. Ra1 {[%clk 0:00:02]}  Rc4 {[%clk 0:00:37]} 27. Kd3 {[%clk 0:00:02]}  Rc8 {[%clk 0:00:28]} 28. Rhc1 {[%clk 0:00:02]}  d5 {[%clk 0:00:28]} 29. exd5 {[%clk 0:00:02]}  Rxd5+ {[%clk 0:00:28]} 30. Ke2 {[%clk 0:00:03]}  Bh6 {[%clk 0:00:27]} 31. Rc2 {[%clk 0:00:03]}  Rdc5 {[%clk 0:00:26]} 32. Ra3 {[%clk 0:00:03]}  f6 {[%clk 0:00:20]} 33. Rb3 {[%clk 0:00:03]}  Bf8 {[%clk 0:00:20]} 34. Kd3 {[%clk 0:00:03]}  Be7 {[%clk 0:00:17]} 35. Rbb2 {[%clk 0:00:03]}  Rd8+ {[%clk 0:00:16]} 36. Ke2 {[%clk 0:00:03]}  Rdc8 {[%clk 0:00:16]} 37. Kd3 {[%clk 0:00:03]}  Kf7 {[%clk 0:00:16]} 38. Be1 {[%clk 0:00:03]}  Rd8+ {[%clk 0:00:16]} 39. Ke2 {[%clk 0:00:03]}  Rcd5 {[%clk 0:00:14]} 40. Rb7 {[%clk 0:00:04]}  R8d7 {[%clk 0:00:13]} 41. Rxd7 {[%clk 0:00:04]}  Rxd7 {[%clk 0:00:13]} 42. Bf2 {[%clk 0:00:04]}  Ke6 {[%clk 0:00:13]} 43. h3 {[%clk 0:00:05]}  Bd6 {[%clk 0:00:14]} 44. Rd2 {[%clk 0:00:05]}  Rb7 {[%clk 0:00:14]} 45. Ra2 {[%clk 0:00:04]}  f5 {[%clk 0:00:14]} 46. Rc2 {[%clk 0:00:04]}  Rb3 {[%clk 0:00:13]} 47. Be1 {[%clk 0:00:04]}  h5 {[%clk 0:00:13]} 48. Bd2 {[%clk 0:00:04]}  Ra3 {[%clk 0:00:13]} 49. Rc6 {[%clk 0:00:04]}  Ra4 {[%clk 0:00:14]} 50. Rb6 {[%clk 0:00:03]}  Kd5 {[%clk 0:00:14]} 51. Rb7 {[%clk 0:00:03]}  Ke6 {[%clk 0:00:14]} 52. Rb6 {[%clk 0:00:03]}  e4 {[%clk 0:00:12]} 53. fxe4 {[%clk 0:00:03]}  Rxe4+ {[%clk 0:00:11]} 54. Kf3 {[%clk 0:00:03]}  Kd5 {[%clk 0:00:11]} 55. Rb5+ {[%clk 0:00:03]}  Ke6 {[%clk 0:00:12]} 56. Rb6 {[%clk 0:00:03]}  g5 {[%clk 0:00:12]} 57. Bxg5 {[%clk 0:00:03]}  Kd5 {[%clk 0:00:11]} 58. Rb5+ {[%clk 0:00:04]}  Ke6 {[%clk 0:00:11]} 59. Rb6 {[%clk 0:00:04]}  Ra4 {[%clk 0:00:12]} 60. Be3 {[%clk 0:00:04]}  Ra3 {[%clk 0:00:12]} 61. Ke2 {[%clk 0:00:03]}  Kd5 {[%clk 0:00:12]} 62. Rb5+ {[%clk 0:00:02]}  Ke4 {[%clk 0:00:12]} 63. Bd2 {[%clk 0:00:02]}  Ra2 {[%clk 0:00:13]} 64. Kd1 {[%clk 0:00:02]}  Be5 {[%clk 0:00:10]} 65. Rb4+ {[%clk 0:00:02]}  Kd3 {[%clk 0:00:08]} 66. Rb3+ {[%clk 0:00:03]}  Kc4 {[%clk 0:00:09]} 67. Rf3 {[%clk 0:00:03]}  f4 {[%clk 0:00:04]} 68. Bxf4 {[%clk 0:00:03]}  Bc3 {[%clk 0:00:04]} 69. g3 {[%clk 0:00:02]}  Rh2 {[%clk 0:00:03]} 70. g4 {[%clk 0:00:02]}  Rh1+ {[%clk 0:00:03]} 71. Ke2 {[%clk 0:00:02]}  hxg4 {[%clk 0:00:03]} 72. hxg4 {[%clk 0:00:03]}  Bd4 {[%clk 0:00:03]} 73. Bg3 {[%clk 0:00:02]}  Kd5 {[%clk 0:00:03]} 74. Rf5+ {[%clk 0:00:02]}  Ke4 {[%clk 0:00:04]} 75. Rf4+ {[%clk 0:00:03]}  Kd5 {[%clk 0:00:04]} 76. g5 {[%clk 0:00:02]}  Ra1 {[%clk 0:00:04]} 77. Kf3 {[%clk 0:00:03]}  Rg1 {[%clk 0:00:04]} 78. Rf5+ {[%clk 0:00:02]}  Ke6 {[%clk 0:00:04]} 79. Rf4 {[%clk 0:00:02]}  Be5 {[%clk 0:00:04]} 80. Rg4 {[%clk 0:00:02]}  Bxg3 {[%clk 0:00:03]} 81. Rxg3 {[%clk 0:00:03]}  Rxg3+ {[%clk 0:00:04]} 82. Kxg3 {[%clk 0:00:04]}  Kf5 {[%clk 0:00:05]} 83. Kh4 {[%clk 0:00:05]}  Kg6 {[%clk 0:00:05]} 84. Kg4 {[%clk 0:00:05]}  Kg7 {[%clk 0:00:06]} 85. Kf5 {[%clk 0:00:06]}  Kf7 {[%clk 0:00:06]} 86. g6+ {[%clk 0:00:07]}  Kg7 {[%clk 0:00:07]} 87. Kg5 {[%clk 0:00:08]}  Kg8 {[%clk 0:00:07]} 88. Kh5 {[%clk 0:00:09]}  Kg7 {[%clk 0:00:08]} 89. Kg5 {[%clk 0:00:09]}  Kg8 {[%clk 0:00:06]} 90. Kh6 {[%clk 0:00:10]}  Kh8 {[%clk 0:00:06]} 91. g7+ {[%clk 0:00:11]}  Kg8 {[%clk 0:00:07]} 92. Kg6 {[%clk 0:00:12]} 1/2-1/2


[Site "https://www.chess.com"]

[Event "Titled Tuesday Blitz October 18 Late 2022"]
[White "Hansen, Eric"]
[Black "Prydun, Andriy"]
[WhiteFideId "2606771"]
[BlackFideId "14145898"]
[WhiteElo "2941"]
[BlackElo "2347"]
[Result "1-0"]
[Round "03"]
[TimeControl "180+1"]
[Date "2022.10.19"]
[WhiteClock "0:01:19"]
[BlackClock "0:00:11"]

1. d4 {[%clk 0:03:00]}  d5 {[%clk 0:02:59]} 2. c4 {[%clk 0:03:01]}  c6 {[%clk 0:02:59]} 3. Nf3 {[%clk 0:03:01]}  Nf6 {[%clk 0:02:59]} 4. e3 {[%clk 0:03:01]}  e6 {[%clk 0:03:00]} 5. Qc2 {[%clk 0:03:00]}  Nbd7 {[%clk 0:03:00]} 6. Bd3 {[%clk 0:03:00]}  Be7 {[%clk 0:02:58]} 7. O-O {[%clk 0:02:58]}  O-O {[%clk 0:02:57]} 8. Nbd2 {[%clk 0:02:59]}  b6 {[%clk 0:02:55]} 9. Ne5 {[%clk 0:02:54]}  Bb7 {[%clk 0:02:45]} 10. cxd5 {[%clk 0:02:54]}  cxd5 {[%clk 0:02:44]} 11. Nc6 {[%clk 0:02:55]}  Bxc6 {[%clk 0:02:44]} 12. Qxc6 {[%clk 0:02:55]}  Qc8 {[%clk 0:02:39]} 13. Qa4 {[%clk 0:02:38]}  a6 {[%clk 0:02:17]} 14. Qd1 {[%clk 0:02:38]}  b5 {[%clk 0:02:14]} 15. a4 {[%clk 0:02:38]}  Qc6 {[%clk 0:01:49]} 16. Nb3 {[%clk 0:02:32]}  Bb4 {[%clk 0:01:47]} 17. Bd2 {[%clk 0:02:29]}  Bxd2 {[%clk 0:01:47]} 18. Qxd2 {[%clk 0:02:30]}  Nb6 {[%clk 0:01:32]} 19. Rfc1 {[%clk 0:02:26]}  Nc4 {[%clk 0:01:28]} 20. Qe2 {[%clk 0:02:26]}  Qb6 {[%clk 0:01:18]} 21. Nc5 {[%clk 0:02:26]}  e5 {[%clk 0:01:06]} 22. b3 {[%clk 0:02:24]}  e4 {[%clk 0:00:56]} 23. Bxc4 {[%clk 0:02:18]}  dxc4 {[%clk 0:00:53]} 24. bxc4 {[%clk 0:02:19]}  b4 {[%clk 0:00:46]} 25. a5 {[%clk 0:02:19]}  Qc6 {[%clk 0:00:45]} 26. Na4 {[%clk 0:02:11]}  Rab8 {[%clk 0:00:42]} 27. Nb6 {[%clk 0:02:09]}  h5 {[%clk 0:00:38]} 28. Rab1 {[%clk 0:02:05]}  Rxb6 {[%clk 0:00:29]} 29. axb6 {[%clk 0:02:05]}  Qxb6 {[%clk 0:00:29]} 30. c5 {[%clk 0:02:05]}  Qb7 {[%clk 0:00:28]} 31. c6 {[%clk 0:01:50]}  Qb6 {[%clk 0:00:26]} 32. Rc5 {[%clk 0:01:47]}  Rc8 {[%clk 0:00:23]} 33. Qc4 {[%clk 0:01:47]}  a5 {[%clk 0:00:22]} 34. h3 {[%clk 0:01:46]}  Rc7 {[%clk 0:00:16]} 35. d5 {[%clk 0:01:39]}  Ne8 {[%clk 0:00:14]} 36. Rb5 {[%clk 0:01:39]}  Nd6 {[%clk 0:00:14]} 37. Rxb6 {[%clk 0:01:38]}  Nxc4 {[%clk 0:00:14]} 38. Ra6 {[%clk 0:01:22]}  Kf8 {[%clk 0:00:12]} 39. Rc1 {[%clk 0:01:20]}  b3 {[%clk 0:00:11]} 40. Rxc4 {[%clk 0:01:19]} 1-0


[Site "https://www.chess.com"]

[Event "Titled Tuesday Blitz October 18 Late 2022"]
[White "Harish, Neeraj"]
[Black "Brown, Andrew"]
[WhiteFideId "30958130"]
[BlackFideId "3206513"]
[WhiteElo "1815"]
[BlackElo "2245"]
[Result "0-1"]
[Round "03"]
[TimeControl "180+1"]
[Date "2022.10.19"]
[WhiteClock "0:00:02"]
[BlackClock "0:00:47"]

1. Nf3 {[%clk 0:02:59]}  g6 {[%clk 0:02:59]} 2. c4 {[%clk 0:02:58]}  Bg7 {[%clk 0:03:00]} 3. Nc3 {[%clk 0:02:57]}  d6 {[%clk 0:03:00]} 4. g3 {[%clk 0:02:51]}  Nd7 {[%clk 0:03:00]} 5. Bg2 {[%clk 0:02:51]}  e5 {[%clk 0:03:00]} 6. d4 {[%clk 0:02:49]}  Ne7 {[%clk 0:02:59]} 7. O-O {[%clk 0:02:48]}  O-O {[%clk 0:02:58]} 8. e4 {[%clk 0:02:40]}  c6 {[%clk 0:02:54]} 9. Be3 {[%clk 0:02:34]}  h6 {[%clk 0:02:53]} 10. Qd2 {[%clk 0:02:27]}  Kh7 {[%clk 0:02:52]} 11. Rfd1 {[%clk 0:02:22]}  Qe8 {[%clk 0:02:25]} 12. b4 {[%clk 0:02:13]}  Nb6 {[%clk 0:02:19]} 13. Qe2 {[%clk 0:02:06]}  Bg4 {[%clk 0:02:08]} 14. d5 {[%clk 0:01:59]}  cxd5 {[%clk 0:02:05]} 15. Nxd5 {[%clk 0:01:50]}  Nexd5 {[%clk 0:02:02]} 16. cxd5 {[%clk 0:01:50]}  Qa4 {[%clk 0:01:55]} 17. a3 {[%clk 0:01:43]}  Bd7 {[%clk 0:01:53]} 18. Rdc1 {[%clk 0:01:22]}  Rac8 {[%clk 0:01:46]} 19. Qd2 {[%clk 0:00:53]}  Nc4 {[%clk 0:01:44]} 20. Qd3 {[%clk 0:00:47]}  Nxe3 {[%clk 0:01:37]} 21. Qxe3 {[%clk 0:00:48]}  f5 {[%clk 0:01:30]} 22. Nd2 {[%clk 0:00:39]}  f4 {[%clk 0:01:29]} 23. Qe1 {[%clk 0:00:28]}  g5 {[%clk 0:01:09]} 24. f3 {[%clk 0:00:25]}  h5 {[%clk 0:00:59]} 25. Nc4 {[%clk 0:00:21]}  Qa6 {[%clk 0:00:57]} 26. Bf1 {[%clk 0:00:20]}  Bb5 {[%clk 0:00:57]} 27. Nd2 {[%clk 0:00:17]}  Bxf1 {[%clk 0:00:56]} 28. Qxf1 {[%clk 0:00:17]}  Rxc1 {[%clk 0:00:54]} 29. Qxc1 {[%clk 0:00:16]}  Qd3 {[%clk 0:00:53]} 30. Kg2 {[%clk 0:00:07]}  fxg3 {[%clk 0:00:53]} 31. hxg3 {[%clk 0:00:06]}  g4 {[%clk 0:00:53]} 32. Qd1 {[%clk 0:00:05]}  Bh6 {[%clk 0:00:48]} 33. fxg4 {[%clk 0:00:02]}  Bxd2 {[%clk 0:00:47]} 34. gxh5 {[%clk 0:00:02]}  Qxe4+ {[%clk 0:00:47]} 0-1


[Site "https://www.chess.com"]

[Event "Titled Tuesday Blitz October 18 Late 2022"]
[White "Harshal, Shahi"]
[Black "Sukandar, Irine Kharisma"]
[WhiteFideId "5048257"]
[BlackFideId "7101937"]
[WhiteElo "2054"]
[BlackElo "2301"]
[Result "0-1"]
[Round "03"]
[TimeControl "180+1"]
[Date "2022.10.19"]
[WhiteClock "0:00:21"]
[BlackClock "0:01:15"]

1. e4 {[%clk 0:02:57]}  e5 {[%clk 0:02:58]} 2. Nf3 {[%clk 0:02:55]}  d6 {[%clk 0:02:58]} 3. Bc4 {[%clk 0:02:55]}  Be7 {[%clk 0:02:59]} 4. d3 {[%clk 0:02:54]}  Nf6 {[%clk 0:02:58]} 5. c3 {[%clk 0:02:55]}  O-O {[%clk 0:02:59]} 6. Bb3 {[%clk 0:02:56]}  Nc6 {[%clk 0:02:53]} 7. Nbd2 {[%clk 0:02:52]}  d5 {[%clk 0:02:53]} 8. O-O {[%clk 0:02:47]}  Bg4 {[%clk 0:02:52]} 9. h3 {[%clk 0:02:46]}  Bh5 {[%clk 0:02:51]} 10. Qe2 {[%clk 0:02:47]}  Re8 {[%clk 0:02:41]} 11. Re1 {[%clk 0:02:41]}  h6 {[%clk 0:02:37]} 12. Nf1 {[%clk 0:02:36]}  dxe4 {[%clk 0:02:35]} 13. dxe4 {[%clk 0:02:22]}  Bg6 {[%clk 0:02:24]} 14. Ng3 {[%clk 0:02:21]}  Nh5 {[%clk 0:02:24]} 15. Nf5 {[%clk 0:02:06]}  Bc5 {[%clk 0:02:20]} 16. N3h4 {[%clk 0:02:03]}  Qf6 {[%clk 0:02:10]} 17. Qg4 {[%clk 0:01:52]}  Kh7 {[%clk 0:02:05]} 18. Qf3 {[%clk 0:01:12]}  Rad8 {[%clk 0:01:56]} 19. g4 {[%clk 0:01:10]}  Nf4 {[%clk 0:01:47]} 20. Bxf4 {[%clk 0:00:56]}  exf4 {[%clk 0:01:48]} 21. Qxf4 {[%clk 0:00:56]}  Rd3 {[%clk 0:01:43]} 22. Rad1 {[%clk 0:00:50]}  Rxh3 {[%clk 0:01:40]} 23. Qxc7 {[%clk 0:00:27]}  Rxh4 {[%clk 0:01:35]} 24. Nxh4 {[%clk 0:00:27]}  Qxf2+ {[%clk 0:01:34]} 25. Kh1 {[%clk 0:00:25]}  Qxh4+ {[%clk 0:01:21]} 26. Qh2 {[%clk 0:00:25]}  Qxg4 {[%clk 0:01:21]} 27. Bd5 {[%clk 0:00:23]}  Ne5 {[%clk 0:01:17]} 28. b4 {[%clk 0:00:21]}  Nf3 {[%clk 0:01:15]} 0-1


[Site "https://www.chess.com"]

[Event "Titled Tuesday Blitz October 18 Late 2022"]
[White "Jaferian, Koosha"]
[Black "Pap, Gyula"]
[WhiteFideId "12507440"]
[BlackFideId "725323"]
[WhiteElo "2127"]
[BlackElo "2519"]
[Result "1/2-1/2"]
[Round "03"]
[TimeControl "180+1"]
[Date "2022.10.18"]
[WhiteClock "0:00:03"]
[BlackClock "0:00:05"]

1. e4 {[%clk 0:03:00]}  e5 {[%clk 0:03:00]} 2. Nf3 {[%clk 0:03:01]}  Nc6 {[%clk 0:03:00]} 3. d4 {[%clk 0:03:01]}  exd4 {[%clk 0:03:01]} 4. Nxd4 {[%clk 0:03:02]}  Bc5 {[%clk 0:02:59]} 5. Nb3 {[%clk 0:03:02]}  Bb4+ {[%clk 0:03:00]} 6. c3 {[%clk 0:03:01]}  Be7 {[%clk 0:03:00]} 7. Be3 {[%clk 0:03:02]}  Nf6 {[%clk 0:03:00]} 8. Bd3 {[%clk 0:03:01]}  d5 {[%clk 0:02:59]} 9. N1d2 {[%clk 0:02:54]}  O-O {[%clk 0:02:45]} 10. Qc2 {[%clk 0:02:51]}  Ne5 {[%clk 0:02:37]} 11. Be2 {[%clk 0:02:40]}  Bg4 {[%clk 0:02:13]} 12. f3 {[%clk 0:02:29]}  Bh5 {[%clk 0:02:13]} 13. Rd1 {[%clk 0:02:23]}  c6 {[%clk 0:02:12]} 14. O-O {[%clk 0:02:21]}  Qc7 {[%clk 0:02:05]} 15. Nd4 {[%clk 0:02:13]}  Bg6 {[%clk 0:01:57]} 16. f4 {[%clk 0:01:59]}  Neg4 {[%clk 0:01:53]} 17. Bxg4 {[%clk 0:01:28]}  Nxg4 {[%clk 0:01:54]} 18. Qd3 {[%clk 0:01:26]}  Rfe8 {[%clk 0:01:40]} 19. Qe2 {[%clk 0:01:00]}  Nxe3 {[%clk 0:01:20]} 20. Qxe3 {[%clk 0:01:01]}  Bxe4 {[%clk 0:00:42]} 21. Nxe4 {[%clk 0:00:52]}  Bd8 {[%clk 0:00:38]} 22. Qg3 {[%clk 0:00:24]}  Rxe4 {[%clk 0:00:37]} 23. Nf5 {[%clk 0:00:25]}  Bf6 {[%clk 0:00:38]} 24. Rde1 {[%clk 0:00:21]}  Rae8 {[%clk 0:00:38]} 25. Rxe4 {[%clk 0:00:21]}  Rxe4 {[%clk 0:00:39]} 26. Qf3 {[%clk 0:00:20]}  Qb6+ {[%clk 0:00:37]} 27. Qf2 {[%clk 0:00:15]}  g6 {[%clk 0:00:35]} 28. Nd6 {[%clk 0:00:11]}  Rxf4 {[%clk 0:00:30]} 29. Qxb6 {[%clk 0:00:10]}  Rxf1+ {[%clk 0:00:31]} 30. Kxf1 {[%clk 0:00:10]}  axb6 {[%clk 0:00:32]} 31. Nxb7 {[%clk 0:00:11]}  Be7 {[%clk 0:00:32]} 32. a4 {[%clk 0:00:11]}  Kf8 {[%clk 0:00:28]} 33. a5 {[%clk 0:00:11]}  bxa5 {[%clk 0:00:29]} 34. Nxa5 {[%clk 0:00:12]}  c5 {[%clk 0:00:30]} 35. Ke2 {[%clk 0:00:12]}  Ke8 {[%clk 0:00:30]} 36. Nb3 {[%clk 0:00:11]}  Kd7 {[%clk 0:00:28]} 37. Nd2 {[%clk 0:00:10]}  c4 {[%clk 0:00:28]} 38. Nf3 {[%clk 0:00:10]}  Bf6 {[%clk 0:00:27]} 39. Kd2 {[%clk 0:00:10]}  Kd6 {[%clk 0:00:27]} 40. Kc2 {[%clk 0:00:10]}  g5 {[%clk 0:00:25]} 41. h3 {[%clk 0:00:10]}  h5 {[%clk 0:00:23]} 42. b3 {[%clk 0:00:10]}  Bd8 {[%clk 0:00:15]} 43. b4 {[%clk 0:00:09]}  f6 {[%clk 0:00:12]} 44. Kd2 {[%clk 0:00:09]}  Bb6 {[%clk 0:00:12]} 45. Ke2 {[%clk 0:00:08]}  g4 {[%clk 0:00:12]} 46. hxg4 {[%clk 0:00:08]}  hxg4 {[%clk 0:00:12]} 47. Nh4 {[%clk 0:00:05]}  Ke5 {[%clk 0:00:12]} 48. Ng6+ {[%clk 0:00:05]}  Ke4 {[%clk 0:00:13]} 49. Ne7 {[%clk 0:00:05]}  f5 {[%clk 0:00:12]} 50. Nc8 {[%clk 0:00:05]}  Be3 {[%clk 0:00:12]} 51. Nd6+ {[%clk 0:00:05]}  Kf4 {[%clk 0:00:11]} 52. Nxf5 {[%clk 0:00:06]}  Bb6 {[%clk 0:00:10]} 53. Ne7 {[%clk 0:00:06]}  Ke5 {[%clk 0:00:10]} 54. Nc6+ {[%clk 0:00:05]}  Ke4 {[%clk 0:00:10]} 55. Ne7 {[%clk 0:00:05]}  Bd8 {[%clk 0:00:10]} 56. Nc6 {[%clk 0:00:05]}  Bf6 {[%clk 0:00:10]} 57. Kd2 {[%clk 0:00:05]}  Bg5+ {[%clk 0:00:02]} 58. Kc2 {[%clk 0:00:05]}  Be3 {[%clk 0:00:03]} 59. b5 {[%clk 0:00:04]}  Kf4 {[%clk 0:00:04]} 60. Nd4 {[%clk 0:00:05]}  Kg3 {[%clk 0:00:03]} 61. b6 {[%clk 0:00:05]}  Kxg2 {[%clk 0:00:04]} 62. b7 {[%clk 0:00:04]}  Bf4 {[%clk 0:00:05]} 63. Ne6 {[%clk 0:00:04]}  Bd6 {[%clk 0:00:04]} 64. Kd2 {[%clk 0:00:04]}  Kf2 {[%clk 0:00:04]} 65. Ng5 {[%clk 0:00:04]}  g3 {[%clk 0:00:04]} 66. Nh3+ {[%clk 0:00:04]}  Kf3 {[%clk 0:00:05]} 67. Ng1+ {[%clk 0:00:04]}  Kf2 {[%clk 0:00:05]} 68. Nh3+ {[%clk 0:00:03]}  Kf3 {[%clk 0:00:06]} 69. Ng1+ {[%clk 0:00:04]}  Ke4 {[%clk 0:00:06]} 70. Ke2 {[%clk 0:00:03]}  d4 {[%clk 0:00:06]} 71. cxd4 {[%clk 0:00:04]}  c3 {[%clk 0:00:07]} 72. Nh3 {[%clk 0:00:03]}  g2 {[%clk 0:00:04]} 73. Ng1 {[%clk 0:00:03]}  c2 {[%clk 0:00:02]} 74. Kd2 {[%clk 0:00:03]}  Kxd4 {[%clk 0:00:02]} 75. Kxc2 {[%clk 0:00:04]}  Ke3 {[%clk 0:00:03]} 76. Nh3 {[%clk 0:00:04]}  Kf3 {[%clk 0:00:03]} 77. Kd3 {[%clk 0:00:04]}  Bb8 {[%clk 0:00:04]} 78. Kd4 {[%clk 0:00:04]}  Kg3 {[%clk 0:00:03]} 79. Ng1 {[%clk 0:00:04]}  Ba7+ {[%clk 0:00:04]} 80. Kd5 {[%clk 0:00:05]}  Kh2 {[%clk 0:00:01]} 81. Nf3+ {[%clk 0:00:05]}  Kg3 {[%clk 0:00:02]} 82. Ng1 {[%clk 0:00:06]}  Bb8 {[%clk 0:00:01]} 83. Kc6 {[%clk 0:00:06]}  Ba7 {[%clk 0:00:02]} 84. Kd7 {[%clk 0:00:05]}  Kf2 {[%clk 0:00:02]} 85. Nh3+ {[%clk 0:00:05]}  Kf3 {[%clk 0:00:03]} 86. Kc8 {[%clk 0:00:05]}  Kg4 {[%clk 0:00:03]} 87. Ng1 {[%clk 0:00:04]}  Bxg1 {[%clk 0:00:04]} 88. b8=Q {[%clk 0:00:05]}  Bf2 {[%clk 0:00:05]} 89. Qb4+ {[%clk 0:00:04]}  Kg3 {[%clk 0:00:05]} 90. Qd6+ {[%clk 0:00:04]}  Kf3 {[%clk 0:00:05]} 91. Qd5+ {[%clk 0:00:04]}  Kg3 {[%clk 0:00:05]} 92. Qg5+ {[%clk 0:00:05]}  Kf3 {[%clk 0:00:06]} 93. Qf5+ {[%clk 0:00:05]}  Kg3 {[%clk 0:00:06]} 94. Qg5+ {[%clk 0:00:05]}  Kh2 {[%clk 0:00:06]} 95. Qh5+ {[%clk 0:00:05]}  Kg3 {[%clk 0:00:05]} 96. Qg5+ {[%clk 0:00:03]} 1/2-1/2


[Site "https://www.chess.com"]

[Event "Titled Tuesday Blitz October 18 Late 2022"]
[White "Janaszak, Dawid"]
[Black "Ferreira, Vitor Hugo Vieira"]
[WhiteFideId "1119206"]
[BlackFideId "2119765"]
[WhiteElo "2226"]
[BlackElo "2168"]
[Result "1-0"]
[Round "03"]
[TimeControl "180+1"]
[Date "2022.10.19"]
[WhiteClock "0:00:33"]
[BlackClock "0:00:02"]

1. e4 {[%clk 0:03:00]}  c5 {[%clk 0:03:00]} 2. Nc3 {[%clk 0:03:00]}  d6 {[%clk 0:03:00]} 3. d4 {[%clk 0:02:59]}  cxd4 {[%clk 0:03:00]} 4. Qxd4 {[%clk 0:03:00]}  Nc6 {[%clk 0:02:57]} 5. Qd2 {[%clk 0:03:01]}  Nf6 {[%clk 0:02:56]} 6. b3 {[%clk 0:03:01]}  g6 {[%clk 0:02:56]} 7. Bb2 {[%clk 0:03:00]}  Bg7 {[%clk 0:02:57]} 8. O-O-O {[%clk 0:03:00]}  O-O {[%clk 0:02:57]} 9. f3 {[%clk 0:02:59]}  Bd7 {[%clk 0:02:30]} 10. Nge2 {[%clk 0:02:58]}  Qa5 {[%clk 0:02:30]} 11. Kb1 {[%clk 0:02:57]}  Rfc8 {[%clk 0:02:30]} 12. Nf4 {[%clk 0:02:54]}  Bh6 {[%clk 0:02:19]} 13. g3 {[%clk 0:02:29]}  e5 {[%clk 0:01:43]} 14. Qxd6 {[%clk 0:02:28]}  exf4 {[%clk 0:01:43]} 15. Qxf6 {[%clk 0:02:26]}  Bg7 {[%clk 0:01:41]} 16. Qxg7+ {[%clk 0:02:25]}  Kxg7 {[%clk 0:01:41]} 17. Rxd7 {[%clk 0:02:25]}  Ne5 {[%clk 0:01:35]} 18. Rd5 {[%clk 0:02:03]}  Rc5 {[%clk 0:01:25]} 19. gxf4 {[%clk 0:02:03]}  Rxd5 {[%clk 0:01:20]} 20. exd5 {[%clk 0:01:53]}  Nxf3 {[%clk 0:01:17]} 21. Ne4+ {[%clk 0:01:45]}  Kh6 {[%clk 0:01:12]} 22. Bc4 {[%clk 0:01:27]}  Re8 {[%clk 0:00:37]} 23. Bc3 {[%clk 0:01:11]}  Qc7 {[%clk 0:00:36]} 24. Nf6 {[%clk 0:01:09]}  Re3 {[%clk 0:00:30]} 25. Ng4+ {[%clk 0:01:08]}  Kh5 {[%clk 0:00:29]} 26. Nxe3 {[%clk 0:01:09]}  b5 {[%clk 0:00:28]} 27. Be2 {[%clk 0:01:02]}  Qxc3 {[%clk 0:00:27]} 28. Bxf3+ {[%clk 0:01:02]}  Kh6 {[%clk 0:00:26]} 29. Ng4+ {[%clk 0:01:02]}  Kg7 {[%clk 0:00:26]} 30. Rf1 {[%clk 0:00:57]}  h5 {[%clk 0:00:23]} 31. Ne5 {[%clk 0:00:57]}  f6 {[%clk 0:00:22]} 32. Nd3 {[%clk 0:00:56]}  a5 {[%clk 0:00:21]} 33. Re1 {[%clk 0:00:52]}  a4 {[%clk 0:00:18]} 34. d6 {[%clk 0:00:49]}  Qd4 {[%clk 0:00:16]} 35. Re7+ {[%clk 0:00:47]}  Kh6 {[%clk 0:00:16]} 36. d7 {[%clk 0:00:43]}  a3 {[%clk 0:00:17]} 37. Kc1 {[%clk 0:00:39]}  Qg1+ {[%clk 0:00:12]} 38. Kd2 {[%clk 0:00:39]}  Qd4 {[%clk 0:00:10]} 39. Bc6 {[%clk 0:00:36]}  b4 {[%clk 0:00:08]} 40. Re8 {[%clk 0:00:33]}  Qc3+ {[%clk 0:00:08]} 41. Ke3 {[%clk 0:00:33]}  Qxc6 {[%clk 0:00:02]} 42. d8=Q {[%clk 0:00:33]} 1-0


[Site "https://www.chess.com"]

[Event "Titled Tuesday Blitz October 18 Late 2022"]
[White "Jimenez Almeida, Luis David"]
[Black "Rengifo Blancas, Renzo Jhonathan"]
[WhiteFideId "22242244"]
[BlackFideId "3807185"]
[WhiteElo "2158"]
[BlackElo "2058"]
[Result "0-1"]
[Round "03"]
[TimeControl "180+1"]
[Date "2022.10.19"]
[WhiteClock "0:00:34"]
[BlackClock "0:00:24"]

1. e4 {[%clk 0:03:00]}  e5 {[%clk 0:02:59]} 2. Nf3 {[%clk 0:03:00]}  Nc6 {[%clk 0:02:59]} 3. Bb5 {[%clk 0:03:00]}  a6 {[%clk 0:02:58]} 4. Ba4 {[%clk 0:03:00]}  Nf6 {[%clk 0:02:58]} 5. d3 {[%clk 0:03:00]}  d6 {[%clk 0:02:55]} 6. O-O {[%clk 0:03:00]}  g6 {[%clk 0:02:36]} 7. c3 {[%clk 0:02:59]}  Bg7 {[%clk 0:02:36]} 8. Nbd2 {[%clk 0:02:58]}  O-O {[%clk 0:02:37]} 9. Re1 {[%clk 0:02:59]}  b5 {[%clk 0:02:37]} 10. Bc2 {[%clk 0:02:57]}  h6 {[%clk 0:02:35]} 11. a4 {[%clk 0:02:57]}  Bb7 {[%clk 0:02:34]} 12. Nf1 {[%clk 0:02:56]}  Re8 {[%clk 0:02:34]} 13. Qe2 {[%clk 0:02:54]}  Nb8 {[%clk 0:02:28]} 14. Ng3 {[%clk 0:02:51]}  c5 {[%clk 0:02:27]} 15. axb5 {[%clk 0:02:41]}  axb5 {[%clk 0:02:26]} 16. Rxa8 {[%clk 0:02:42]}  Bxa8 {[%clk 0:02:27]} 17. b4 {[%clk 0:02:41]}  cxb4 {[%clk 0:02:24]} 18. cxb4 {[%clk 0:02:42]}  Nc6 {[%clk 0:02:25]} 19. Bd2 {[%clk 0:02:41]}  Qb6 {[%clk 0:02:23]} 20. Bc3 {[%clk 0:02:27]}  Rc8 {[%clk 0:02:21]} 21. Bb3 {[%clk 0:02:26]}  Ng4 {[%clk 0:02:17]} 22. h3 {[%clk 0:02:19]}  Nd8 {[%clk 0:02:07]} 23. Bd4 {[%clk 0:01:56]}  exd4 {[%clk 0:02:04]} 24. hxg4 {[%clk 0:01:56]}  Ne6 {[%clk 0:02:04]} 25. Qa2 {[%clk 0:01:52]}  Re8 {[%clk 0:01:52]} 26. g5 {[%clk 0:01:46]}  h5 {[%clk 0:01:41]} 27. Nf5 {[%clk 0:01:45]}  Kh7 {[%clk 0:01:20]} 28. Nxg7 {[%clk 0:01:34]}  Kxg7 {[%clk 0:01:20]} 29. Rc1 {[%clk 0:01:21]}  Bb7 {[%clk 0:01:12]} 30. Qb2 {[%clk 0:01:17]}  Nf4 {[%clk 0:00:57]} 31. Nxd4 {[%clk 0:01:14]}  Kh7 {[%clk 0:00:57]} 32. Kf1 {[%clk 0:01:02]}  Nxd3 {[%clk 0:00:54]} 33. Qd2 {[%clk 0:00:44]}  Nxc1 {[%clk 0:00:52]} 34. Bxf7 {[%clk 0:00:43]}  Rxe4 {[%clk 0:00:44]} 35. Ne6 {[%clk 0:00:40]}  Qc6 {[%clk 0:00:29]} 36. Qb2 {[%clk 0:00:36]}  Re1+ {[%clk 0:00:25]} 37. Kxe1 {[%clk 0:00:34]}  Nd3+ {[%clk 0:00:24]} 0-1


[Site "https://www.chess.com"]